bitfinex-derivatives/quotes_BTCF0:USTF0_20260221
["timestamp","ask_amount","ask_price","bid_price","bid_amount"]
[1771691264945,0.49497838,68257.0,68238.0,0.014658]
[1771691265251,0.49497838,68266.0,68243.0,0.014657]
[1771691265555,0.49497838,68259.0,68242.0,0.014657]
[1771691265741,0.49497838,68259.0,68233.0,0.52403582]
[1771691265942,0.49497838,68259.0,68240.0,0.014658]
[1771691266252,0.49497838,68259.0,68239.0,0.014658]
[1771691266547,0.49497838,68259.0,68241.0,0.014658]
[1771691266746,0.49497838,68259.0,68242.0,0.029316]
[1771691267253,0.49497838,68259.0,68244.0,0.014657]
[1771691267439,0.49497838,68259.0,68241.0,0.014658]
[1771691267642,0.49497838,68259.0,68244.0,0.014657]
[1771691268847,0.49497838,68259.0,68246.0,0.014657]
[1771691269048,0.49497838,68269.0,68246.0,0.014657]
[1771691269243,0.49497838,68269.0,68245.0,0.014657]
[1771691270341,0.49497838,68269.0,68239.0,0.52403582]
[1771691270342,0.49497838,68269.0,68246.0,0.014657]
[1771691270851,0.49497838,68269.0,68247.0,0.014656]
[1771691271454,0.49497838,68269.0,68248.0,0.014656]
[1771691271948,0.49497838,68269.0,68246.0,0.014657]
[1771691271949,0.49497838,68269.0,68250.0,0.014656]
[1771691272155,0.49497838,68269.0,68251.0,0.014656]
[1771691273946,0.49497838,68269.0,68253.0,0.014655]
[1771691274356,0.49497838,68277.0,68256.0,0.014655]
[1771691274550,0.49497838,68277.0,68255.0,0.014655]
[1771691275050,0.49497838,68277.0,68261.0,0.014653]
[1771691275356,0.49497838,68277.0,68260.0,0.014654]
[1771691275554,0.49497838,68277.0,68261.0,0.014653]
[1771691276256,0.49497838,68277.0,68261.0,0.014654]
[1771691276459,0.49497838,68277.0,68266.0,0.014652]
[1771691276750,0.00073227,68281.0,68265.0,0.014653]
[1771691277448,0.00073227,68281.0,68263.0,0.014653]
[1771691277449,0.00073227,68281.0,68266.0,0.014652]
[1771691277647,0.00073227,68281.0,68267.0,0.014652]
[1771691277953,0.00073227,68281.0,68264.0,0.014653]
[1771691278158,0.00073227,68281.0,68263.0,0.014653]
[1771691278359,0.00073227,68281.0,68268.0,0.014652]
[1771691279460,0.00073227,68281.0,68270.0,0.014652]
[1771691279654,0.00073227,68281.0,68267.0,0.014652]
[1771691279961,0.00073227,68281.0,68269.0,0.014652]
[1771691280457,0.05733949,68290.0,68271.0,0.014651]
[1771691280656,0.4856691,68292.0,68271.0,0.014651]
[1771691280853,0.05733949,68290.0,68271.0,0.014651]
[1771691281057,0.05733949,68290.0,68272.0,0.014651]
[1771691281554,0.4856691,68292.0,68273.0,0.014651]
[1771691282147,0.4856691,68292.0,68277.0,0.01465]
[1771691282352,0.4881721,68302.0,68278.0,0.01465]
[1771691282955,0.4881721,68302.0,68279.0,0.01465]
[1771691283156,0.4881721,68302.0,68281.0,0.014649]
[1771691283352,0.4881721,68302.0,68283.0,0.014649]
[1771691284153,0.4881721,68302.0,68284.0,0.014649]
[1771691284755,0.4881721,68302.0,68286.0,0.014648]
[1771691285155,0.4881721,68302.0,68284.0,0.014649]
[1771691285359,0.47897959,68293.0,68274.0,0.014651]
[1771691285657,0.47897959,68293.0,68276.0,0.01465]
[1771691286461,0.47897959,68293.0,68275.0,0.01465]
[1771691288059,0.47897959,68293.0,68273.0,0.014651]
[1771691288372,0.49179272,68283.0,68265.0,0.014653]
[1771691288556,0.49179272,68283.0,68267.0,0.014652]
[1771691288753,0.49179272,68283.0,68268.0,0.014652]
[1771691289465,0.49179272,68283.0,68269.0,0.014652]
[1771691291361,0.49179272,68283.0,68268.0,0.014652]
[1771691291758,0.49179272,68283.0,68269.0,0.014652]
[1771691291965,0.49179272,68283.0,68264.0,0.014653]
[1771691292166,0.47229117,68290.0,68273.0,0.014651]
[1771691292363,0.1340989,68299.0,68260.0,0.54723258]
[1771691292364,0.47229117,68298.0,68280.0,0.014649]
[1771691292561,0.47229117,68298.0,68276.0,0.01465]
[1771691292768,0.47229117,68298.0,68275.0,0.01465]
[1771691292969,0.47229117,68298.0,68275.0,0.0293]
[1771691293362,0.05733949,68300.0,68270.0,0.014652]
[1771691293363,0.5289724,68290.0,68270.0,0.014652]
[1771691293670,0.5289724,68290.0,68271.0,0.014651]
[1771691293864,0.5289724,68290.0,68267.0,0.014652]
[1771691294070,0.5289724,68290.0,68272.0,0.014651]
[1771691295371,0.5289724,68290.0,68270.0,0.014652]
[1771691295671,0.5289724,68290.0,68267.0,0.014652]
[1771691295883,0.17865461,68280.0,68268.0,0.014652]
[1771691297264,0.46847658,68282.0,68272.0,0.014651]
[1771691297571,0.46653686,68298.0,68272.0,0.014651]
[1771691297767,0.46653686,68289.0,68272.0,0.014651]
[1771691298473,0.001,68282.0,68272.0,0.014651]
[1771691298963,0.001,68282.0,68273.0,0.014651]
[1771691299164,0.44948081,68282.0,68251.0,0.48989309]
[1771691299363,0.44948081,68282.0,68232.0,2.04183679]
[1771691299364,0.35730922,68261.0,68225.0,0.50455409]
[1771691299667,0.17865461,68260.0,68239.0,0.014658]
[1771691299871,0.17865461,68260.0,68240.0,0.014658]
[1771691300065,0.46952956,68259.0,68240.0,0.014658]
[1771691300471,0.46964141,68258.0,68240.0,0.014658]
[1771691300672,0.00011185,68258.0,68240.0,0.014658]
[1771691300874,0.46952956,68257.0,68240.0,0.029314]
[1771691301072,0.46952956,68257.0,68234.0,0.014659]
[1771691301073,0.17865461,68250.0,68234.0,0.014659]
[1771691301267,0.46964141,68249.0,68234.0,0.014659]
[1771691301674,0.46952956,68248.0,68234.0,0.014659]
[1771691302070,0.46952956,68247.0,68234.0,0.014659]
[1771691302267,0.46952956,68248.0,68234.0,0.014659]
[1771691302667,0.46952956,68247.0,68234.0,0.014659]
[1771691302867,0.46952956,68248.0,68234.0,0.014659]
[1771691303071,0.47052956,68248.0,68234.0,0.014659]
[1771691303275,0.46952956,68247.0,68232.0,0.01466]
[1771691303665,0.46952956,68246.0,68233.0,0.01466]
[1771691303874,0.46952956,68247.0,68234.0,0.014659]
[1771691304370,0.46952956,68246.0,68231.0,0.0007328]
[1771691304673,0.46952956,68247.0,68239.0,0.014658]
[1771691305073,0.46952956,68246.0,68239.0,0.014658]
[1771691305275,0.001,68247.0,68239.0,0.014658]
[1771691305776,0.46952956,68246.0,68239.0,0.014658]
[1771691305966,0.46952956,68248.0,68238.0,0.014658]
[1771691306468,0.47052956,68247.0,68238.0,0.014658]
[1771691306670,0.001,68247.0,68238.0,0.014658]
[1771691306869,0.46952956,68246.0,68238.0,0.014658]
[1771691307068,0.46952956,68246.0,68236.0,0.014659]
[1771691307277,0.46952956,68245.0,68236.0,0.014659]
[1771691307465,0.46952956,68246.0,68236.0,0.014659]
[1771691308079,0.46952956,68245.0,68236.0,0.014659]
[1771691308575,0.46952956,68244.0,68236.0,0.014659]
[1771691308778,0.46952956,68245.0,68236.0,0.014659]
[1771691309171,0.46952956,68244.0,68236.0,0.014659]
[1771691309578,0.46952956,68243.0,68236.0,0.014659]
[1771691309770,0.47052956,68244.0,68239.0,0.014658]
[1771691310078,0.26437183,68268.0,68241.0,0.57870872]
[1771691310377,0.27902383,68268.0,68245.0,0.014657]
[1771691310577,0.014656,68251.0,68245.0,0.014657]
[1771691311279,0.014656,68252.0,68245.0,0.014657]
[1771691312178,0.014655,68254.0,68242.0,0.014658]
[1771691312478,0.014655,68253.0,68246.0,0.014657]
[1771691312978,0.014655,68255.0,68246.0,0.014657]
[1771691313175,0.014655,68256.0,68245.0,0.56461735]
[1771691313380,0.014655,68256.0,68248.0,0.014656]
[1771691313676,0.014654,68257.0,68248.0,0.014656]
[1771691313977,0.014654,68257.0,68249.0,0.014656]
[1771691315179,0.014654,68258.0,68248.0,0.014656]
[1771691315372,0.014654,68258.0,68249.0,0.014656]
[1771691315572,0.014655,68255.0,68245.0,0.57927435]
[1771691315773,0.014655,68255.0,68246.0,0.014657]
[1771691316475,0.014655,68254.0,68246.0,0.014657]
[1771691318478,0.014655,68255.0,68247.0,0.014657]
[1771691318673,0.014655,68256.0,68248.0,0.014656]
[1771691319882,0.014655,68256.0,68247.0,0.014657]
[1771691320177,0.014654,68261.0,68252.0,0.014655]
[1771691320475,0.014654,68261.0,68251.0,0.014656]
[1771691320681,0.014653,68263.0,68254.0,0.014655]
[1771691321080,0.029306,68263.0,68254.0,0.014655]
[1771691321484,0.001,68261.0,68254.0,0.014655]
[1771691321977,0.014651,68271.0,68254.0,0.014655]
[1771691322171,0.001,68263.0,68257.0,0.014654]
[1771691322380,0.001,68263.0,68259.0,0.014654]
[1771691322579,0.014652,68267.0,68259.0,0.014654]
[1771691323083,0.014653,68265.0,68257.0,0.014654]
[1771691324177,0.014653,68264.0,68257.0,0.014654]
[1771691324376,0.014653,68263.0,68256.0,0.014655]
[1771691324685,0.014653,68264.0,68257.0,0.014654]
[1771691324983,0.014653,68265.0,68258.0,0.014654]
[1771691325279,1e-06,68266.0,68258.0,0.57073129]
[1771691325485,0.014651,68273.0,68266.0,0.014652]
[1771691325781,0.014651,68273.0,68261.0,0.54142529]
[1771691325782,0.01465,68278.0,68269.0,0.014652]
[1771691325980,0.01465,68279.0,68270.0,0.014652]
[1771691326178,0.01465,68280.0,68270.0,0.014652]
[1771691326179,0.01465,68278.0,68270.0,0.014652]
[1771691326679,0.01465,68278.0,68269.0,0.014652]
[1771691327386,0.01465,68279.0,68267.0,0.54142529]
[1771691327586,0.01465,68278.0,68270.0,0.014652]
[1771691328280,0.01465,68278.0,68269.0,0.014652]
[1771691328879,0.014649,68282.0,68262.0,0.014653]
[1771691329079,0.014651,68275.0,68265.0,0.014653]
[1771691329388,0.014651,68274.0,68265.0,0.014653]
[1771691330188,0.014651,68273.0,68265.0,0.014653]
[1771691330379,0.01465,68278.0,68267.0,0.014652]
[1771691330781,0.014651,68275.0,68267.0,0.014652]
[1771691331384,0.014651,68274.0,68267.0,0.014652]
[1771691334085,0.014651,68274.0,68268.0,0.014652]
[1771691334992,0.014651,68272.0,68266.0,0.014652]
[1771691335180,0.014651,68272.0,68265.0,0.17865461]
[1771691335378,0.014651,68273.0,68266.0,0.014652]
[1771691336293,0.014652,68268.0,68261.0,0.014653]
[1771691336488,0.014652,68266.0,68259.0,0.014654]
[1771691336689,0.014652,68266.0,68252.0,0.014655]
[1771691336690,0.014654,68257.0,68251.0,0.54133168]
[1771691336891,0.17865461,68270.0,68249.0,0.014656]
[1771691337196,0.014655,68255.0,68250.0,0.014656]
[1771691337391,0.014655,68256.0,68250.0,0.014656]
[1771691337598,0.014655,68252.0,68247.0,0.014656]
[1771691337790,0.014655,68252.0,68248.0,0.014656]
[1771691338097,0.014655,68253.0,68248.0,0.014656]
[1771691338302,0.014654,68259.0,68254.0,0.014655]
[1771691338596,0.014654,68259.0,68249.0,0.71998629]
[1771691338597,0.014655,68256.0,68249.0,0.71998629]
[1771691338792,0.014655,68255.0,68250.0,0.014656]
[1771691338995,0.014655,68256.0,68251.0,0.014656]
[1771691339497,0.014655,68256.0,68250.0,0.014656]
[1771691339799,0.014655,68256.0,68251.0,0.014656]
[1771691340896,0.014654,68257.0,68252.0,0.014655]
[1771691341597,0.014655,68255.0,68248.0,0.014656]
[1771691341800,0.014654,68259.0,68249.0,0.014656]
[1771691342092,0.014655,68254.0,68247.0,0.014656]
[1771691342297,0.014655,68253.0,68248.0,0.014656]
[1771691342698,0.014655,68256.0,68250.0,0.014656]
[1771691342886,0.014654,68258.0,68252.0,0.014655]
[1771691343092,0.014654,68257.0,68252.0,0.014655]
[1771691343488,0.014653,68262.0,68248.0,0.54825161]
[1771691343700,0.014654,68261.0,68254.0,0.014655]
[1771691343900,0.014654,68258.0,68253.0,0.014655]
[1771691344195,0.014654,68258.0,68251.0,0.014656]
[1771691344403,0.014654,68259.0,68253.0,0.014655]
[1771691344589,0.014654,68259.0,68254.0,0.014655]
[1771691345001,0.014654,68260.0,68254.0,0.014655]
[1771691346401,0.014654,68260.0,68255.0,0.014655]
[1771691346699,0.014654,68260.0,68254.0,0.014655]
[1771691347302,0.014653,68265.0,68257.0,0.014654]
[1771691347605,0.014653,68265.0,68258.0,0.014654]
[1771691348409,0.014653,68266.0,68258.0,0.014654]
[1771691349697,0.014652,68269.0,68261.0,0.014653]
[1771691349901,0.014652,68268.0,68259.0,0.19330861]
[1771691350103,0.014652,68267.0,68259.0,0.19330861]
[1771691350905,0.014652,68268.0,68259.0,0.17865461]
[1771691351103,0.014652,68270.0,68259.0,0.17865461]
[1771691351410,0.014652,68268.0,68259.0,0.19330861]
[1771691351903,0.014652,68270.0,68259.0,0.19330861]
[1771691351904,0.029304,68270.0,68259.0,0.19330861]
[1771691352102,0.014652,68267.0,68259.0,0.19330861]
[1771691353000,0.014652,68269.0,68261.0,0.014654]
[1771691353205,0.014652,68268.0,68261.0,0.53019331]
[1771691353508,0.014648,68287.0,68263.0,0.014653]
[1771691353709,0.014652,68269.0,68262.0,0.53010333]
[1771691354505,0.014652,68269.0,68262.0,0.54475633]
[1771691354808,0.014652,68269.0,68262.0,0.53010333]
[1771691355009,0.014651,68272.0,68262.0,0.54475633]
[1771691355211,0.014651,68271.0,68262.0,0.53010333]
[1771691355508,0.014652,68270.0,68262.0,0.54475633]
[1771691355912,0.014651,68274.0,68263.0,0.014653]
[1771691356205,0.014652,68271.0,68263.0,0.029306]
[1771691356410,0.014652,68270.0,68262.0,0.54475633]
[1771691356705,0.014652,68269.0,68262.0,0.53010333]
[1771691357211,0.014652,68269.0,68263.0,0.001]
[1771691359011,0.029303,68271.0,68263.0,0.001]
[1771691359213,0.014652,68270.0,68263.0,0.001]
[1771691359411,0.014652,68270.0,68262.0,0.53010333]
[1771691359712,0.014651,68274.0,68265.0,0.014653]
[1771691359910,0.014651,68273.0,68265.0,0.014653]
[1771691360406,0.01465,68278.0,68265.0,0.53854562]
[1771691360613,0.014651,68276.0,68268.0,0.014652]
[1771691361004,0.014651,68275.0,68268.0,0.014652]
[1771691361209,0.01465,68276.0,68269.0,0.52389262]
[1771691361405,0.01465,68280.0,68269.0,0.52389262]
[1771691361713,0.014651,68275.0,68269.0,0.52389262]
[1771691361912,0.01465,68280.0,68270.0,0.53846396]
[1771691362107,0.014649,68281.0,68273.0,0.014651]
[1771691363909,0.014649,68281.0,68272.0,0.53846296]
[1771691365315,0.014649,68280.0,68272.0,0.53846296]
[1771691366418,0.014649,68281.0,68272.0,0.53846296]
[1771691366601,0.014648,68286.0,68276.0,0.01465]
[1771691366804,0.014649,68283.0,68272.0,0.52381196]
[1771691367014,0.014649,68283.0,68272.0,0.53846296]
[1771691367015,0.014649,68281.0,68272.0,0.53846296]
[1771691367813,0.014649,68281.0,68273.0,0.014651]
[1771691368417,0.014649,68285.0,68274.0,0.53296402]
[1771691368721,0.014649,68283.0,68274.0,0.53296402]
[1771691368912,0.014649,68282.0,68274.0,0.53296402]
[1771691372229,0.014649,68282.0,68274.0,0.51831302]
[1771691372732,0.014649,68281.0,68274.0,0.51831302]
[1771691373428,0.01465,68279.0,68274.0,0.51831302]
[1771691375334,0.014649,68283.0,68274.0,0.53296402]
[1771691375541,0.014648,68289.0,68277.0,0.53786507]
[1771691376134,0.014648,68287.0,68279.0,0.58048007]
[1771691376335,0.014644,68307.0,68283.0,0.52103502]
[1771691376537,0.014648,68288.0,68279.0,0.01465]
[1771691376841,0.014648,68289.0,68280.0,0.52118402]
[1771691377135,0.014647,68290.0,68282.0,0.51831302]
[1771691377841,0.029293,68290.0,68282.0,0.51831302]
[1771691378539,0.014646,68297.0,68282.0,0.51831302]
[1771691379731,0.643785,68310.0,68284.0,0.55180011]
[1771691379942,0.25144527,68307.0,68284.0,0.55180011]
[1771691380133,0.25144527,68306.0,68284.0,0.56644911]
[1771691380334,0.643785,68310.0,68284.0,0.55180011]
[1771691380335,0.25144527,68305.0,68284.0,0.55180011]
[1771691380643,0.25144527,68304.0,68284.0,0.55180011]
[1771691380832,0.63999456,68309.0,68285.0,0.55180011]
[1771691381028,0.25141951,68308.0,68285.0,0.56644811]
[1771691381233,0.25141951,68307.0,68285.0,0.56644811]
[1771691381434,0.25141951,68306.0,68285.0,0.56644811]
[1771691381635,0.46912,68309.0,68287.0,0.55180011]
[1771691381839,0.25139791,68308.0,68287.0,0.55180011]
[1771691382034,0.25139791,68307.0,68302.0,0.00088]
[1771691382235,0.46912,68309.0,68287.0,0.55180011]
[1771691382436,0.25137651,68308.0,68290.0,0.55180011]
[1771691382640,0.13252575,68320.0,68298.0,0.014646]
[1771691382837,0.25139157,68315.0,68296.0,0.56644611]
[1771691383040,0.25139157,68314.0,68297.0,0.014646]
[1771691383237,0.25139157,68313.0,68297.0,0.56644611]
[1771691383438,0.13176046,68325.0,68297.0,0.55180011]
[1771691383632,0.25133944,68324.0,68297.0,0.55180011]
[1771691383839,0.05258361,68322.0,68297.0,0.55180011]
[1771691384040,0.25133944,68321.0,68297.0,0.55180011]
[1771691384240,0.30860444,68320.0,68297.0,0.55180011]
[1771691384445,0.25133944,68319.0,68297.0,0.55180011]
[1771691384648,0.25133944,68318.0,68297.0,0.55180011]
[1771691384947,0.057265,68320.0,68297.0,0.55180011]
[1771691384948,0.25133944,68317.0,68297.0,0.55180011]
[1771691385136,0.25133944,68316.0,68297.0,0.55180011]
[1771691385338,0.25133944,68315.0,68297.0,0.55180011]
[1771691385538,0.25133944,68314.0,68297.0,0.55180011]
[1771691385740,0.057265,68310.0,68288.0,0.55180011]
[1771691386141,0.108326,68310.0,68288.0,0.55180011]
[1771691386445,0.051061,68310.0,68288.0,0.55180011]
[1771691386651,0.057265,68320.0,68288.0,0.55180011]
[1771691386842,0.25103995,68319.0,68291.0,0.55180011]
[1771691387047,0.05637538,68317.0,68291.0,0.55180011]
[1771691387241,0.05567186,68315.0,68288.0,0.029296]
[1771691387441,0.25103995,68314.0,68288.0,0.58109611]
[1771691387650,0.25103995,68314.0,68290.0,0.55180011]
[1771691388040,0.25103995,68314.0,68308.0,0.00088]
[1771691388347,0.25103995,68313.0,68293.0,0.55180011]
[1771691388539,0.25103995,68312.0,68293.0,0.55180011]
[1771691388739,0.057265,68320.0,68293.0,0.55180011]
[1771691388940,0.25104673,68319.0,68293.0,0.55180011]
[1771691389143,0.25104673,68318.0,68298.0,0.55180011]
[1771691389340,0.25104673,68317.0,68301.0,0.55180011]
[1771691389545,0.00073173,68331.0,68309.0,0.014643]
[1771691389836,0.00073173,68331.0,68307.0,0.55180011]
[1771691391341,0.00073173,68331.0,68311.0,0.55180011]
[1771691391946,0.00073173,68331.0,68314.0,0.55180011]
[1771691392646,0.00073173,68331.0,68310.0,0.071908]
[1771691392845,0.00073173,68331.0,68312.0,0.014642]
[1771691393047,0.00073173,68331.0,68318.0,0.55180011]
[1771691395550,0.00073173,68331.0,68310.0,0.55180011]
[1771691401455,0.2946987,68330.0,68310.0,0.55180011]
[1771691401650,0.2374314,68329.0,68310.0,0.55180011]
[1771691401858,0.2374314,68328.0,68310.0,0.55180011]
[1771691402054,0.00073173,68331.0,68310.0,0.55180011]
[1771691402246,0.23743606,68330.0,68310.0,0.55180011]
[1771691402448,0.23743606,68329.0,68310.0,0.55180011]
[1771691402754,0.23743606,68328.0,68312.0,0.55180011]
[1771691403049,0.00073173,68331.0,68322.0,0.00088]
[1771691403249,0.23746815,68330.0,68312.0,0.55180011]
[1771691403450,0.00073173,68331.0,68317.0,0.53730011]
[1771691403855,0.24376911,68346.0,68317.0,0.55194111]
[1771691404148,0.2375019,68343.0,68317.0,0.55194111]
[1771691404354,0.2375019,68342.0,68317.0,0.55194111]
[1771691404551,0.2375019,68341.0,68317.0,0.55194111]
[1771691404751,0.2375019,68340.0,68317.0,0.55194111]
[1771691404957,0.2375019,68339.0,68317.0,0.55194111]
[1771691405157,0.2375019,68338.0,68317.0,0.55194111]
[1771691405357,0.2375019,68337.0,68317.0,0.55194111]
[1771691405558,0.2375019,68336.0,68317.0,0.55194111]
[1771691405759,0.2375019,68335.0,68317.0,0.53730011]
[1771691405954,0.2375019,68334.0,68317.0,0.53730011]
[1771691406162,0.603506,68344.0,68328.0,0.55180011]
[1771691406362,0.23762455,68343.0,68328.0,0.55180011]
[1771691406659,0.23762455,68342.0,68328.0,0.55180011]
[1771691406860,0.23762455,68341.0,68328.0,0.55180011]
[1771691407060,0.23762455,68340.0,68328.0,0.55180011]
[1771691407253,0.23762455,68339.0,68328.0,0.55180011]
[1771691407454,0.23762455,68338.0,68328.0,0.55180011]
[1771691407654,0.469,68344.0,68328.0,0.55180011]
[1771691407856,0.23767395,68343.0,68328.0,0.55180011]
[1771691408057,0.23767395,68342.0,68328.0,0.55180011]
[1771691408367,0.057265,68340.0,68317.0,0.51849605]
[1771691408551,0.23767395,68339.0,68317.0,0.51849605]
[1771691409257,0.23767395,68339.0,68317.0,0.51749605]
[1771691412963,0.057265,68330.0,68307.0,0.50869743]
[1771691413163,0.23767395,68329.0,68309.0,0.50869743]
[1771691413469,0.23767395,68328.0,68309.0,0.50869743]
[1771691413664,0.23767395,68327.0,68309.0,0.50869743]
[1771691413863,0.23767395,68326.0,68309.0,0.50869743]
[1771691414063,0.23767395,68325.0,68307.0,0.001]
[1771691414271,0.23767395,68324.0,68307.0,0.001]
[1771691414471,0.23767395,68323.0,68307.0,0.001]
[1771691414676,0.23767395,68322.0,68301.0,0.50869743]
[1771691414867,0.23767395,68321.0,68301.0,0.50869743]
[1771691415068,0.23767395,68320.0,68301.0,0.50869743]
[1771691415268,0.23767395,68319.0,68301.0,0.50869743]
[1771691415469,0.03930625,68328.0,68301.0,0.50869743]
[1771691415771,0.27665564,68327.0,68301.0,0.50869743]
[1771691415969,0.23799771,68326.0,68301.0,0.50869743]
[1771691417274,0.23799771,68325.0,68303.0,0.52334143]
[1771691417473,0.23799771,68324.0,68303.0,0.52334143]
[1771691417674,0.3844764,68329.0,68303.0,0.50869743]
[1771691417675,0.23799771,68323.0,68303.0,0.50869743]
[1771691417868,0.23799771,68322.0,68303.0,0.50869743]
[1771691418076,0.23799771,68321.0,68303.0,0.50869743]
[1771691418374,0.23799771,68320.0,68303.0,0.50869743]
[1771691418575,0.23799771,68319.0,68303.0,0.50869743]
[1771691418776,0.23799771,68318.0,68303.0,0.50869743]
[1771691418965,0.23799771,68317.0,68303.0,0.50869743]
[1771691419166,0.23799771,68316.0,68303.0,0.50869743]
[1771691419378,0.23799771,68315.0,68303.0,0.50869743]
[1771691419572,0.23799771,68314.0,68303.0,0.50869743]
[1771691419878,0.13513431,68329.0,68295.0,0.50869743]
[1771691419879,0.23799771,68313.0,68295.0,0.50869743]
[1771691420065,0.23799771,68312.0,68300.0,0.1784505]
[1771691420269,0.23799771,68311.0,68300.0,0.1784505]
[1771691420476,0.23799771,68310.0,68300.0,0.1784505]
[1771691420670,0.1784505,68320.0,68301.0,0.50869743]
[1771691420873,0.23827169,68319.0,68303.0,0.001]
[1771691421081,0.02905008,68328.0,68303.0,0.50969743]
[1771691421274,0.23827305,68327.0,68303.0,0.49519743]
[1771691421578,0.23827305,68326.0,68303.0,0.49519743]
[1771691421780,0.23827305,68325.0,68303.0,0.49519743]
[1771691421975,0.23827305,68324.0,68303.0,0.49519743]
[1771691422175,0.23827305,68323.0,68303.0,0.49519743]
[1771691422376,0.23827305,68322.0,68303.0,0.49519743]
[1771691422575,0.02905008,68328.0,68303.0,0.49519743]
[1771691422779,0.23514585,68327.0,68303.0,0.49519743]
[1771691423081,0.1784505,68320.0,68303.0,0.49519743]
[1771691426480,0.23505116,68319.0,68293.0,0.50869743]
[1771691426682,0.1784505,68310.0,68293.0,0.50869743]
[1771691426882,0.2571637,68319.0,68293.0,0.50869743]
[1771691427083,0.23504801,68318.0,68293.0,0.50869743]
[1771691427288,0.23504801,68317.0,68293.0,0.52334443]
[1771691427591,0.2571637,68319.0,68293.0,0.52334443]
[1771691427778,0.23503798,68318.0,68293.0,0.52334443]
[1771691428085,0.1784505,68310.0,68293.0,0.50869743]
[1771691429385,0.2571637,68319.0,68293.0,0.50869743]
[1771691429584,0.23495017,68318.0,68293.0,0.50869743]
[1771691429786,0.23495017,68317.0,68293.0,0.50869743]
[1771691429987,0.23495017,68316.0,68293.0,0.50869743]
[1771691430188,0.23495017,68315.0,68293.0,0.50869743]
[1771691430377,0.39209684,68319.0,68293.0,0.50869743]
[1771691430581,0.23492515,68318.0,68293.0,0.50869743]
[1771691430785,0.23492515,68317.0,68293.0,0.50869743]
[1771691430982,0.23492515,68316.0,68293.0,0.50869743]
[1771691431290,0.23492515,68315.0,68293.0,0.50869743]
[1771691431493,0.23492515,68314.0,68293.0,0.50869743]
[1771691431785,0.1784505,68310.0,68293.0,0.50869743]
[1771691433481,0.1784505,68310.0,68287.0,0.014648]
[1771691433482,0.2348407,68309.0,68286.0,0.014648]
[1771691433682,0.2348407,68308.0,68285.0,0.52334543]
[1771691433888,0.2348407,68307.0,68291.0,0.50869743]
[1771691434090,0.2348407,68306.0,68291.0,0.50869743]
[1771691434393,0.1784505,68310.0,68291.0,0.50869743]
[1771691434693,0.23484211,68309.0,68291.0,0.50869743]
[1771691434889,0.23484211,68308.0,68291.0,0.50869743]
[1771691435202,0.23484211,68307.0,68291.0,0.50869743]
[1771691435497,0.1784505,68310.0,68291.0,0.50869743]
[1771691435697,0.23481573,68309.0,68291.0,0.50869743]
[1771691435893,0.25275369,68317.0,68291.0,0.52334443]
[1771691436087,0.23482617,68316.0,68291.0,0.50869743]
[1771691436294,0.23482617,68315.0,68293.0,0.50869743]
[1771691436599,0.23482617,68314.0,68293.0,0.50869743]
[1771691436796,0.23482617,68313.0,68293.0,0.50869743]
[1771691436997,0.1784505,68310.0,68293.0,0.50869743]
[1771691437197,0.23482617,68309.0,68293.0,0.50869743]
[1771691437396,0.23482617,68309.0,68293.0,0.49419743]
[1771691438101,0.1784505,68310.0,68293.0,0.49419743]
[1771691438296,0.23428777,68309.0,68293.0,0.49419743]
[1771691438491,0.23428777,68308.0,68293.0,0.49419743]
[1771691438798,0.1784505,68310.0,68293.0,0.49419743]
[1771691438994,0.2343279,68309.0,68293.0,0.49419743]
[1771691439298,0.2343279,68308.0,68293.0,0.49419743]
[1771691439502,0.1784505,68310.0,68293.0,0.49419743]
[1771691439798,0.23435948,68309.0,68293.0,0.49419743]
[1771691439989,0.23435948,68308.0,68293.0,0.49419743]
[1771691440191,0.1784505,68310.0,68293.0,0.49419743]
[1771691440401,0.23436992,68309.0,68293.0,0.49419743]
[1771691440593,0.23436992,68308.0,68293.0,0.49419743]
[1771691440792,0.1784505,68310.0,68293.0,0.49419743]
[1771691440992,0.23442343,68309.0,68293.0,0.49419743]
[1771691441197,0.23442343,68308.0,68293.0,0.49419743]
[1771691441498,0.23442343,68307.0,68284.0,0.53254613]
[1771691441699,0.1784505,68310.0,68285.0,0.53254513]
[1771691441907,0.21443578,68309.0,68285.0,0.53254513]
[1771691442099,0.1784505,68310.0,68285.0,0.53254513]
[1771691442400,0.21443903,68309.0,68285.0,0.53254513]
[1771691442603,0.21443903,68308.0,68285.0,0.53254513]
[1771691442786,0.1784505,68310.0,68285.0,0.53254513]
[1771691442990,0.21453179,68309.0,68285.0,0.53254513]
[1771691443192,0.21453179,68308.0,68285.0,0.53254513]
[1771691443392,0.1784505,68310.0,68285.0,0.53254513]
[1771691443597,0.2145888,68309.0,68285.0,0.53254513]
[1771691443797,0.2145888,68308.0,68290.0,0.1784505]
[1771691443997,0.1784505,68310.0,68290.0,0.1784505]
[1771691444198,0.1784505,68310.0,68285.0,0.53254513]
[1771691444199,0.21458902,68309.0,68285.0,0.51789713]
[1771691444396,0.21458902,68308.0,68285.0,0.51789713]
[1771691444595,0.21458902,68307.0,68285.0,0.51789713]
[1771691444800,0.1784505,68310.0,68285.0,0.51789713]
[1771691445098,0.24681982,68317.0,68281.0,0.01538127]
[1771691445099,0.1784505,68295.0,68281.0,0.00073227]
[1771691445293,0.1784505,68291.0,68276.0,0.51789713]
[1771691448001,0.75605497,68299.0,68276.0,0.51789713]
[1771691448203,0.21542943,68298.0,68276.0,0.51789713]
[1771691448404,0.21542943,68297.0,68276.0,0.51789713]
[1771691448698,0.21542943,68296.0,68276.0,0.51789713]
[1771691448904,0.21542943,68295.0,68276.0,0.51789713]
[1771691449106,0.21542943,68294.0,68276.0,0.51789713]
[1771691449405,0.13116729,68301.0,68276.0,0.51789713]
[1771691449606,0.21535716,68300.0,68276.0,0.51789713]
[1771691449795,0.21535716,68299.0,68276.0,0.51789713]
[1771691450000,0.21535716,68298.0,68276.0,0.51789713]
[1771691450203,0.21535716,68297.0,68276.0,0.51789713]
[1771691450402,0.26746042,68295.0,68266.0,0.51789713]
[1771691450602,0.21535716,68294.0,68266.0,0.53254913]
[1771691450802,0.21526484,68293.0,68266.0,0.53254913]
[1771691451003,0.26746042,68295.0,68266.0,0.53254913]
[1771691451195,0.2152644,68294.0,68266.0,0.53254913]
[1771691451399,0.21524413,68293.0,68266.0,0.51789713]
[1771691451601,0.26746042,68295.0,68266.0,0.53354913]
[1771691451805,0.21524413,68294.0,68266.0,0.53354913]